lending/lending_fUSD_20260119
["ID","MTS","AMOUNT","RATE_DAILY","PERIOD"]
[402685689,1768804240652,-500.0,0.00016327,2]
[402685690,1768804240662,-500.0,0.00016327,2]
[402685691,1768804240672,-500.0,0.00016327,2]
[402685692,1768804240682,-500.0,0.00016327,2]
[402685693,1768804240691,-500.0,0.00016327,2]
[402685694,1768804240702,-500.0,0.00016327,2]
[402685695,1768804240712,-500.0,0.00016327,2]
[402685696,1768804240721,-151.0,0.00016327,2]
[402685697,1768804240731,-151.0,0.00016327,2]
[402685698,1768804240740,-151.0,0.00016327,2]
[402685699,1768804240750,-151.0,0.00016327,2]
[402685700,1768804240759,-151.0,0.00016327,2]
[402685701,1768804240769,-151.0,0.00016327,2]
[402685702,1768804240781,-151.0,0.00016327,2]
[402685703,1768804240791,-151.0,0.00016327,2]
[402685704,1768804240802,-151.0,0.00016327,2]
[402685705,1768804240811,-151.0,0.00016327,2]
[402685706,1768804240822,-151.0,0.00016327,2]
[402685707,1768804240831,-151.0,0.00016334,2]
[402685708,1768804240841,-278.059138,0.00016334,2]
[402685709,1768804240851,-500.0,0.00016336,2]
[402685710,1768804240860,-150.0,0.00016336,2]
[402685711,1768804240870,-1000000.0,0.00016337,2]
[402685712,1768804240880,-500.0,0.00016356,2]
[402685713,1768804240889,-500.0,0.00016356,2]
[402685714,1768804240898,-1800.0,0.00016356,2]
[402685715,1768804240907,-151.0,0.00016365,2]
[402685716,1768804240916,-151.0,0.00016365,2]
[402685717,1768804240926,-151.0,0.00016373,2]
[402685718,1768804240935,-151.0,0.00016373,2]
[402685719,1768804240944,-150.0,0.00016389,2]
[402685720,1768804240953,-837.0,0.000164,2]
[402685721,1768804240963,-151.14,0.000164,2]
[402685722,1768804240971,-150.0,0.000164,2]
[402685723,1768804240980,-935.58,0.000164,2]
[402685724,1768804240989,-150.0,0.000164,2]
[402685725,1768804240999,-14044.61922147,0.00016421,2]
[402685726,1768804241008,-511.10431069,0.00016437,2]
[402685727,1768804241017,-500.0,0.00016438,2]
[402685728,1768804241028,-500.0,0.00016438,2]
[402685729,1768804241038,-500.0,0.00016438,2]
[402685730,1768804241047,-500.0,0.00016438,2]
[402685731,1768804241056,-500.0,0.00016438,2]
[402685732,1768804241066,-500.0,0.00016438,2]
[402685733,1768804241075,-521.77832099,0.00016438,2]
[402685734,1768804241084,-500.0,0.00016438,2]
[402685735,1768804241094,-500.0,0.00016438,2]
[402685736,1768804241103,-500.0,0.00016438,2]
[402685737,1768804241112,-500.0,0.00016438,2]
[402685738,1768804241121,-500.0,0.00016438,2]
[402685739,1768804241131,-500.0,0.00016438,2]
[402685740,1768804241140,-500.0,0.00016438,2]
[402685741,1768804241149,-500.0,0.00016438,2]
[402685742,1768804241158,-500.0,0.00016438,2]
[402685743,1768804241167,-500.0,0.00016438,2]
[402685744,1768804241176,-500.0,0.00016438,2]
[402685745,1768804241185,-500.0,0.00016438,2]
[402685746,1768804241194,-500.0,0.00016438,2]
[402685747,1768804241204,-500.0,0.00016438,2]
[402685748,1768804241214,-500.0,0.00016438,2]
[402685749,1768804241224,-500.0,0.00016438,2]
[402685750,1768804241234,-500.0,0.00016438,2]
[402685751,1768804241244,-500.0,0.00016438,2]
[402685752,1768804241254,-500.0,0.00016438,2]
[402685753,1768804241263,-500.0,0.00016438,2]
[402685754,1768804241272,-500.0,0.00016438,2]
[402685755,1768804241281,-500.0,0.00016438,2]
[402685756,1768804241291,-500.0,0.00016438,2]
[402685757,1768804241300,-300.58340851,0.00016438,2]
[402685758,1768804241309,-982.0402849,0.00016438,2]
[402685759,1768804241319,-4319.62586682,0.00016438,2]
[402685760,1768804241328,-2045.65935531,0.00016438,2]
[402685761,1768804241337,-1406.85,0.00016438,2]
[402685762,1768804241346,-1406.85,0.00016438,2]
[402685763,1768804241355,-1406.85,0.00016438,2]
[402685764,1768804241364,-1406.85,0.00016438,2]
[402685765,1768804241374,-1406.85,0.00016438,2]
[402685766,1768804241383,-500.0,0.00016438,2]
[402685767,1768804241392,-500.0,0.00016438,2]
[402685768,1768804241401,-500.0,0.00016438,2]
[402685769,1768804241411,-500.0,0.00016438,2]
[402685770,1768804241421,-500.0,0.00016438,2]
[402685771,1768804241431,-500.0,0.00016438,2]
[402685772,1768804241682,-500.0,0.00016438,2]
[402685773,1768804241692,-244.21145217,0.00016438,2]
[402685774,1768804241702,-500.0,0.00016438,2]
[402685775,1768804241711,-500.0,0.00016438,2]
[402685776,1768804241721,-500.0,0.00016438,2]
[402685777,1768804241730,-500.0,0.00016438,2]
[402685778,1768804241741,-500.0,0.00016438,2]
[402685779,1768804241750,-500.0,0.00016438,2]
[402685780,1768804241760,-500.0,0.00016438,2]
[402685781,1768804241770,-500.0,0.00016438,2]
[402685782,1768804241779,-500.0,0.00016438,2]
[402685783,1768804241789,-500.0,0.00016438,2]
[402685784,1768804241799,-500.0,0.00016438,2]
[402685785,1768804241809,-500.0,0.00016438,2]
[402685786,1768804241818,-500.0,0.00016438,2]
[402685787,1768804241828,-500.0,0.00016438,2]
[402685788,1768804241837,-500.0,0.00016438,2]
[402685789,1768804241847,-500.0,0.00016438,2]
[402685790,1768804241856,-500.0,0.00016438,2]
[402685791,1768804241865,-500.0,0.00016438,2]
[402685792,1768804241876,-500.0,0.00016438,2]
[402685793,1768804241886,-500.0,0.00016438,2]
[402685794,1768804241896,-500.0,0.00016438,2]
[402685795,1768804241906,-500.0,0.00016438,2]
[402685796,1768804241917,-426.43085572,0.00016438,2]
[402685797,1768804241927,-800.0,0.00016438,2]
[402685798,1768804241936,-1251.0,0.00016438,2]
[402685799,1768804241947,-13764.90298621,0.00016439,2]
[402685800,1768804241957,-150.0,0.00016484,2]
[402685801,1768804241967,-677.2194146,0.00016515,2]
[402685802,1768804241976,-151.0,0.00016517,2]
[402685803,1768804241985,-1264.0,0.00016517,2]
[402685804,1768804241994,-151.0,0.00016517,2]
[402685805,1768804242003,-151.0,0.00016517,2]
[402685806,1768804242013,-151.0,0.00016517,2]
[402685807,1768804242023,-151.0,0.00016517,2]
[402685808,1768804242035,-151.0,0.00016517,2]
[402685809,1768804242044,-423.92,0.00016519,2]
[402685810,1768804242055,-520.57165728,0.00016521,2]
[402685811,1768804242066,-538.94314832,0.00016521,2]
[402685812,1768804242076,-501.7009743,0.00016521,2]
[402685813,1768804242090,-502.83012904,0.00016521,2]
[402685814,1768804242100,-500.0,0.00016521,2]
[402685815,1768804242110,-502.02344145,0.00016521,2]
[402685816,1768804242120,-500.0,0.00016521,2]
[402685817,1768804242130,-500.0,0.00016521,2]
[402685818,1768804242139,-500.0,0.00016521,2]
[402685819,1768804242148,-500.80565354,0.00016521,2]
[402685820,1768804242157,-1000.0,0.00016521,2]
[402685821,1768804242167,-786.8814507,0.00016521,2]
[402685822,1768804242176,-500.76797646,0.00016521,2]
[402685823,1768804242186,-500.0,0.00016541,2]
[402685824,1768804242196,-1734.84,0.00016541,2]
[402685825,1768804242207,-500.0,0.00016542,2]
[402685826,1768804242217,-500.0,0.00016556,2]
[402685827,1768804242226,-832.99271072,0.00016567,2]
[402685828,1768804242235,-620.0,0.00016571,2]
[402685829,1768804242245,-322.6107,0.00016571,2]
[402685830,1768804242257,-174.61919141,0.00016571,2]
[402685831,1768804242266,-1000.0,0.00016571,2]
[402685832,1768804242276,-1999.0,0.00016571,2]
[402685833,1768804242285,-1000.0,0.00016571,2]
[402685834,1768804242295,-1000.0,0.00016571,2]
[402685835,1768804242304,-1000.0,0.00016571,2]
[402685836,1768804242315,-1000.0,0.00016571,2]
[402685837,1768804242326,-153.82652848,0.00016571,2]
[402685838,1768804242335,-1000.0,0.00016571,2]
[402685839,1768804242344,-1000.0,0.00016571,2]
[402685840,1768804242354,-1000.0,0.00016571,2]
[402685841,1768804242363,-1000.0,0.00016571,2]
[402685842,1768804242372,-1000.0,0.00016571,2]
[402685843,1768804242381,-574.12855637,0.00016571,2]
[402685844,1768804242391,-1000.0,0.00016571,2]
[402685845,1768804242400,-151.0,0.00016571,2]
[402685846,1768804242411,-197.30205766,0.00016571,2]
[402685847,1768804242422,-578.20924308,0.00016571,2]
[402685848,1768804242431,-721.12765535,0.00016571,2]
[402685849,1768804242444,-250.0,0.00016571,2]
[402685850,1768804242457,-250.0,0.00016571,2]
[402685851,1768804242467,-250.0,0.00016571,2]
[402685852,1768804242476,-250.0,0.00016571,2]
[402685853,1768804242486,-250.0,0.00016571,2]
[402685854,1768804242496,-250.0,0.00016571,2]
[402685855,1768804242505,-500.0,0.00016571,2]
[402685856,1768804242515,-1000.0,0.00016571,2]
[402685857,1768804242528,-250.0,0.00016571,2]
[402685858,1768804242538,-295.06281191,0.00016571,2]
[402685859,1768804242547,-250.0,0.00016571,2]
[402685860,1768804242557,-1000.0,0.00016571,2]
[402685861,1768804242569,-250.0,0.00016571,2]
[402685862,1768804242578,-1000.0,0.00016571,2]
[402685863,1768804242587,-250.0,0.00016571,2]
[402685864,1768804242598,-1000.0,0.00016571,2]
[402685865,1768804242608,-1000.0,0.00016571,2]
[402685866,1768804242617,-250.0,0.00016571,2]
[402685867,1768804242626,-262.50340931,0.00016571,2]
[402685868,1768804242636,-1049.25704845,0.00016571,2]
[402685869,1768804242645,-250.0,0.00016571,2]
[402685870,1768804242655,-1000.0,0.00016571,2]
[402685871,1768804242664,-250.0,0.00016571,2]
[402685872,1768804242674,-1268.37155993,0.00016571,2]
[402685873,1768804242684,-1500.0,0.00016571,2]
[402685874,1768804242695,-1500.0,0.00016571,2]
[402685875,1768804242705,-1500.0,0.00016571,2]
[402685876,1768804242717,-1500.0,0.00016571,2]
[402685877,1768804242726,-1500.0,0.00016571,2]
[402685878,1768804242737,-1000.0,0.00016571,2]
[402685879,1768804242747,-1500.0,0.00016571,2]
[402685880,1768804242756,-1000.0,0.00016571,2]
[402685881,1768804242766,-1500.0,0.00016571,2]
[402685882,1768804242776,-1000.0,0.00016571,2]
[402685883,1768804242786,-606.35951942,0.00016571,2]
[402685885,1768804242797,-1000.0,0.00016571,2]
[402685888,1768804242811,-1000.0,0.00016571,2]
[402685890,1768804242822,-1000.0,0.00016571,2]
[402685891,1768804242832,-1000.0,0.00016571,2]
[402685892,1768804242842,-500.0,0.00016571,2]
[402685894,1768804242852,-500.0,0.00016571,2]
[402685895,1768804242862,-500.0,0.00016571,2]
[402685896,1768804242872,-545.89130143,0.00016571,2]
[402685897,1768804242882,-500.0,0.00016571,2]
[402685898,1768804242891,-500.0,0.00016571,2]
[402685899,1768804242901,-500.0,0.00016571,2]
[402685901,1768804242911,-500.0,0.00016571,2]
[402685903,1768804242921,-500.0,0.00016571,2]
[402685905,1768804242931,-264.85852013,0.00016571,2]
[402685907,1768804242940,-150.0,0.00016579,2]
[402685909,1768804242950,-14044.61922147,0.00016606,2]
[402685911,1768804242960,-13764.90298621,0.00016621,2]
[402685913,1768804242970,-2335.28681123,0.0001664,2]
[402685914,1768804242980,-4119.7227454,0.0001664,2]
[402685915,1768804242989,-6162.85884269,0.0001664,2]
[402685917,1768804242999,-8338.5621,0.0001664,2]
[402685920,1768804243009,-322.63,0.00016659,2]
[402685921,1768804243021,-150.0,0.00016674,2]
[402685922,1768804243033,-150.0,0.00016682,2]
[402685923,1768804243043,-150.0,0.00016682,2]
[402685924,1768804243053,-500.0,0.00016682,2]
[402685925,1768804243062,-271.92678904,0.00016691,2]
[402685926,1768804243073,-500.0,0.00016699,2]
[402685927,1768804243083,-500.74196097,0.00016699,2]
[402685928,1768804243092,-835.0,0.0001672,2]
[402685929,1768804243102,-150.0,0.00016737,2]
[402685930,1768804243112,-159.3784323,0.00016737,2]
[402685931,1768804243122,-500.0,0.00016737,2]
[402685932,1768804243132,-2663.79,0.00016757,2]
[402685933,1768804243142,-150.0,0.00016768,2]
[402685934,1768804243151,-692.36,0.00016781,2]
[402685935,1768804243160,-14044.61922147,0.00016791,2]
[402685936,1768804243172,-150.0,0.00016792,2]
[402685937,1768804243186,-171.95168859,0.00016792,2]
[402685938,1768804243196,-677.2194146,0.00016792,2]
[402685939,1768804243207,-423.92,0.00016793,2]
[402685940,1768804243216,-688.0114059,0.00016801,2]
[402685941,1768804243226,-13764.90298621,0.00016804,2]
[402685942,1768804243236,-832.99271072,0.00016834,2]
[402685943,1768804243247,-1711.2931,0.00016844,2]
[402685944,1768804243257,-150.0,0.00016846,2]
[402685945,1768804243268,-500.0,0.00016849,2]
[402685946,1768804243278,-150.0,0.00016863,2]
[402685947,1768804243288,-500.0,0.00016875,2]
[402685948,1768804243298,-200.0,0.00016875,2]
[402685949,1768804243307,-203.81812262,0.00016875,2]
[402685950,1768804243317,-150.0,0.00016901,2]
[402685951,1768804243327,-150.0,0.00016901,2]
[402685952,1768804243336,-150.0,0.00016901,2]
[402685953,1768804243347,-150.0,0.00016901,2]
[402685954,1768804243356,-179.78440682,0.00016901,2]
[402685956,1768804243366,-150.0,0.00016901,2]
[402685957,1768804243379,-150.0,0.00016901,2]
[402685958,1768804243388,-150.0,0.00016901,2]
[402685959,1768804243397,-500.0,0.00016901,2]
[402685960,1768804243407,-150.0,0.00016901,2]
[402685961,1768804243416,-150.0,0.00016901,2]
[402685962,1768804243426,-150.0,0.00016901,2]
[402685963,1768804243435,-535.0,0.00016901,2]
[402685964,1768804243444,-150.0,0.00016901,2]
[402685965,1768804243454,-150.0,0.00016901,2]
[402685966,1768804243463,-500.0,0.00016901,2]
[402685967,1768804243472,-150.0,0.00016901,2]
[402685968,1768804243482,-223.24310385,0.00016901,2]
[402685969,1768804243492,-3225.1030655,0.00016904,2]
[402685970,1768804243503,-224.73746907,0.00016956,2]
[402685971,1768804243514,-150.0,0.00016956,2]
[402685972,1768804243525,-150.0,0.00016956,2]
[402685973,1768804243539,-150.0,0.00016956,2]
[402685974,1768804243550,-150.0,0.00016956,2]
[402685975,1768804243559,-500.0,0.00016956,2]
[402685976,1768804243572,-150.0,0.00016956,2]
[402685977,1768804243581,-200.0,0.00016956,2]
[402685978,1768804243591,-535.0,0.00016956,2]
[402685979,1768804243602,-246.4287002,0.00016956,2]
[402685980,1768804243612,-500.0,0.00016956,2]
[402685981,1768804243622,-150.0,0.00016956,2]
[402685982,1768804243632,-150.0,0.00016958,2]
[402685983,1768804243643,-14044.61922147,0.00016976,2]
[402685984,1768804243653,-13764.90298621,0.00016987,2]
[402685985,1768804243663,-250.0,0.00017,2]
[402685986,1768804243673,-150.0,0.00017011,2]
[402685987,1768804243683,-200.0,0.00017011,2]
[402685988,1768804243693,-200.0,0.00017011,2]
[402685989,1768804243703,-200.0,0.00017011,2]
[402685990,1768804243712,-500.0,0.00017011,2]
[402685991,1768804243722,-150.0,0.00017011,2]
[402685992,1768804243732,-535.0,0.00017011,2]
[402685993,1768804243742,-500.0,0.00017011,2]
[402685994,1768804243752,-150.0,0.00017011,2]
[402685995,1768804243762,-557.0,0.0001704,2]
[402685996,1768804243772,-163.0,0.0001704,2]
[402685997,1768804243783,-835.0,0.0001704,2]
[402685998,1768804243793,-150.0,0.00017053,2]
[402685999,1768804243804,-150.0,0.00017065,2]
[402686000,1768804243814,-500.0,0.00017065,2]
[402686001,1768804243824,-200.0,0.00017065,2]
[402686002,1768804243834,-535.0,0.00017065,2]
[402686003,1768804243844,-500.0,0.00017065,2]
[402686004,1768804243854,-423.92836186,0.00017067,2]
[402686005,1768804243864,-677.2194146,0.00017069,2]
[402686006,1768804243874,-210.0,0.00017089,2]
[402686007,1768804243883,-150.0,0.000171,2]
[402686008,1768804243894,-30000.0,0.000171,2]
[402686009,1768804243904,-832.99271072,0.000171,2]
[402686010,1768804243914,-181.08010149,0.00017119,2]
[402686011,1768804243924,-595.37131296,0.00017119,2]
[402686012,1768804243935,-150.0,0.0001712,2]
[402686013,1768804243945,-460.0,0.0001712,2]
[402686014,1768804243966,-535.0,0.0001712,2]
[402686015,1768804243976,-500.0,0.0001712,2]
[402686016,1768804243986,-150.0,0.00017147,2]
[402686017,1768804243996,-200.0,0.00017156,2]
[402686018,1768804244007,-14044.61922147,0.0001716,2]
[402686019,1768804244017,-13764.90298621,0.00017169,2]
[402686020,1768804244027,-250.0,0.00017175,2]
[402686021,1768804244039,-535.0,0.00017175,2]
[402686022,1768804244049,-500.0,0.00017175,2]
[402686023,1768804244061,-719.6177635,0.00017176,2]
[402686024,1768804244071,-635.04,0.00017178,2]
[402686025,1768804244082,-171.87,0.00017178,2]
[402686026,1768804244093,-179.62,0.00017178,2]
[402686027,1768804244103,-179.62,0.00017178,2]
[402686028,1768804244114,-557.83,0.00017178,2]
[402686029,1768804244124,-171.87,0.00017178,2]
[402686030,1768804244135,-179.62,0.00017178,2]
[402686031,1768804244146,-557.83,0.00017178,2]
[402686032,1768804244156,-171.87,0.00017178,2]
[402686033,1768804244167,-557.83,0.00017178,2]
[402686034,1768804244177,-179.62,0.00017178,2]
[402686035,1768804244187,-171.87,0.00017178,2]
[402686036,1768804244197,-557.83,0.00017178,2]
[402686037,1768804244207,-179.62,0.00017178,2]
[402686038,1768804244217,-171.87,0.00017178,2]
[402686039,1768804244227,-179.62,0.00017178,2]
[402686040,1768804244238,-557.83,0.00017178,2]
[402686041,1768804244248,-171.87,0.00017178,2]
[402686042,1768804244258,-557.83,0.00017178,2]
[402686043,1768804244268,-179.62,0.00017178,2]
[402686044,1768804244278,-171.87,0.00017178,2]
[402686045,1768804244288,-600.0,0.000172,6]
[402686046,1768804244300,-153.37786433,0.00017205,2]
[402686047,1768804244311,-168.89824346,0.00017205,2]
[402686048,1768804244321,-153.37786433,0.00017205,2]
[402686049,1768804244330,-269.32422606,0.00017205,2]
[402686050,1768804244340,-212.26400867,0.00017205,2]
[402686051,1768804244350,-535.0,0.0001723,2]
[402686052,1768804244361,-500.0,0.0001723,2]
[402686053,1768804244371,-150.0,0.00017242,2]
[402686054,1768804244381,-1000.0,0.0001726,2]
[402686055,1768804244391,-535.0,0.00017285,2]
[402686056,1768804244401,-500.0,0.00017285,2]
[402686057,1768804244411,-269.32422606,0.00017288,2]
[402686058,1768804244421,-212.26400867,0.00017288,2]
[402686059,1768804244431,-1538.8336191,0.0001729,2]
[402686060,1768804244443,-900.0,0.000173,6]
[402686061,1768804244454,-153.37786433,0.00017315,2]
[402686062,1768804244464,-153.37786433,0.00017315,2]
[402686063,1768804244474,-30529.0,0.00017315,2]
[402686064,1768804244485,-200.0,0.00017335,2]
[402686065,1768804244499,-200.0,0.00017335,2]
[402686066,1768804244509,-200.0,0.00017335,2]
[402686067,1768804244519,-200.0,0.00017335,2]
[402686068,1768804244535,-203.43081976,0.00017335,2]
[402686069,1768804244545,-300.0,0.00017335,2]
[402686070,1768804244557,-150.0,0.00017337,2]
[402686071,1768804244568,-535.0,0.00017339,2]
[402686072,1768804244579,-500.0,0.00017339,2]
[402686073,1768804244589,-269.32422606,0.00017342,2]
[402686074,1768804244599,-212.26400867,0.00017342,2]
[402686075,1768804244609,-14044.61922147,0.00017345,2]
[402686076,1768804244618,-677.2194146,0.00017346,2]
[402686077,1768804244628,-688.01140589,0.00017351,2]
[402686078,1768804244638,-13764.90298621,0.00017352,2]
[402686079,1768804244650,-832.99271072,0.00017367,2]
[402686080,1768804244660,-168.89824346,0.0001737,2]
[402686081,1768804244670,-500.0,0.00017394,2]
[402686082,1768804244680,-535.0,0.00017394,2]
[402686083,1768804244691,-153.37786433,0.00017397,2]
[402686084,1768804244700,-153.37786433,0.00017397,2]
[402686085,1768804244710,-1100.0,0.000174,6]
[402686086,1768804244720,-195.0,0.00017405,2]
[402686087,1768804244731,-193.0,0.00017405,2]
[402686088,1768804244741,-385.0,0.00017424,2]
[402686089,1768804244751,-269.32422606,0.00017425,2]
[402686090,1768804244761,-212.26400867,0.00017425,2]
[402686091,1768804244771,-150.0,0.00017432,2]
[402686092,1768804244781,-500.0,0.00017449,2]
[402686093,1768804244791,-535.0,0.00017449,2]
[402686094,1768804244801,-188.26,0.0001746,2]
[402686095,1768804244812,-420.0,0.00017462,2]
[402686096,1768804244822,-153.37786433,0.00017479,2]
[402686097,1768804244833,-153.37786433,0.00017479,2]
[402686098,1768804244843,-2000.0,0.000175,2]
[402686099,1768804244854,-200.0,0.000175,6]
[402686100,1768804244865,-535.0,0.00017504,2]
[402686101,1768804244875,-500.0,0.00017504,2]
[402686102,1768804244885,-4458.9,0.00017505,2]
[402686103,1768804244899,-269.32422606,0.00017507,2]
[402686104,1768804244909,-212.26400867,0.00017507,2]
[402686105,1768804244919,-155.85715041,0.00017516,2]
[402686106,1768804244929,-150.0,0.00017526,2]
[402686107,1768804244938,-14044.61922147,0.0001753,2]
[402686108,1768804244951,-168.89824346,0.00017534,2]
[402686109,1768804244962,-1600.0,0.00017534,2]
[402686110,1768804244972,-1000.0,0.00017534,2]
[402686111,1768804244982,-13764.90298621,0.00017535,2]
[402686112,1768804244991,-1680.0,0.00017549,2]
[402686113,1768804245001,-4458.9,0.0001755,2]
[402686114,1768804245012,-535.0,0.00017559,2]
[402686115,1768804245024,-500.0,0.00017559,2]
[402686116,1768804245034,-153.37786433,0.00017562,2]
[402686117,1768804245045,-153.37786433,0.00017562,2]
[402686118,1768804245057,-269.32422606,0.00017562,2]
[402686119,1768804245067,-212.26400867,0.00017562,2]
[402686120,1768804245077,-150.0,0.00017562,2]
[402686121,1768804245087,-306.38313047,0.00017569,2]
[402686122,1768804245097,-250.0,0.00017569,2]
[402686123,1768804245107,-2500.0,0.00017569,2]
[402686124,1768804245116,-356.39989859,0.00017569,2]
[402686125,1768804245126,-4458.9,0.00017595,2]
[402686126,1768804245136,-200.0,0.000176,6]
[402686127,1768804245146,-535.0,0.00017613,2]
[402686128,1768804245156,-500.0,0.00017613,2]
[402686129,1768804245166,-150.0,0.00017617,2]
[402686130,1768804245175,-150.0,0.00017621,2]
[402686131,1768804245185,-677.2194146,0.00017623,2]
[402686132,1768804245195,-832.99271072,0.00017633,2]
[402686133,1768804245205,-4458.9,0.0001764,2]
[402686134,1768804245215,-2803.96379871,0.0001764,2]
[402686135,1768804245226,-153.37786433,0.00017644,2]
[402686136,1768804245236,-153.37786433,0.00017644,2]
[402686137,1768804245247,-269.32422606,0.00017644,2]
[402686138,1768804245256,-212.26400867,0.00017644,2]
[402686139,1768804245266,-187.78006525,0.00017667,2]
[402686140,1768804245280,-617.40005154,0.00017667,2]
[402686141,1768804245290,-535.0,0.00017668,2]
[402686142,1768804245300,-168.89824346,0.00017671,2]
[402686143,1768804245314,-163.0,0.0001768,2]
[402686144,1768804245324,-163.0,0.0001768,2]
[402686145,1768804245334,-4458.9,0.00017685,2]
[402686146,1768804245344,-269.32422606,0.00017699,2]
[402686147,1768804245355,-212.26400867,0.00017699,2]
[402686148,1768804245365,-200.0,0.000177,6]
[402686149,1768804245375,-385.0,0.00017713,2]
[402686150,1768804245385,-271.929972,0.00017715,2]
[402686151,1768804245395,-271.929972,0.00017715,2]
[402686152,1768804245405,-271.929972,0.00017715,2]
[402686153,1768804245414,-271.929972,0.00017715,2]
[402686154,1768804245426,-14044.61922147,0.00017715,2]
[402686155,1768804245438,-150.0,0.00017716,2]
[402686156,1768804245448,-13764.90298621,0.00017717,2]
[402686157,1768804245459,-750.0,0.0001772,2]
[402686158,1768804245469,-535.0,0.00017723,2]
[402686159,1768804245480,-150.79763478,0.00017726,2]
[402686160,1768804245490,-150.0,0.00017726,2]
[402686161,1768804245499,-750.0,0.00017726,2]
[402686162,1768804245509,-1800.0,0.00017726,7]
[402686163,1768804245519,-153.37786433,0.00017726,2]
[402686164,1768804245531,-153.37786433,0.00017726,2]
[402686165,1768804245546,-750.0,0.00017729,2]
[402686166,1768804245558,-4458.9,0.0001773,2]
[402686168,1768804245899,-188.26,0.00017744,2]
[402686169,1768804245909,-1406.85,0.00017752,2]
[402686170,1768804245919,-750.0,0.00017753,2]
[402686171,1768804245929,-151.60783167,0.00017753,2]
[402686172,1768804245938,-322.63,0.00017761,2]
[402686173,1768804245951,-4458.9,0.00017775,2]
[402686174,1768804245960,-535.0,0.00017778,2]
[402686175,1768804245969,-150.0,0.00017781,2]
[402686176,1768804245979,-269.32422606,0.00017781,2]
[402686177,1768804245987,-212.26400867,0.00017781,2]
[402686178,1768804245997,-615.674,0.00017797,2]
[402686179,1768804246006,-1332.0,0.00017797,2]
[402686180,1768804246016,-2440.0,0.00017797,2]
[402686181,1768804246024,-1000.0,0.000178,2]
[402686182,1768804246034,-1000.0,0.000178,2]
[402686183,1768804246043,-200.0,0.000178,6]
[402686184,1768804246054,-150.0,0.00017808,2]
[402686185,1768804246063,-500.0,0.00017808,2]
[402686186,1768804246073,-153.37786433,0.00017808,2]
[402686187,1768804246083,-153.37786433,0.00017808,2]
[402686188,1768804246092,-1000.0,0.00017808,2]
[402686189,1768804246102,-151.0,0.00017808,2]
[402686190,1768804246111,-151.0,0.00017808,2]
[402686191,1768804246120,-151.0,0.00017808,2]
[402686192,1768804246129,-151.0,0.00017808,2]
[402686193,1768804246139,-174.73453145,0.00017808,2]
[402686194,1768804246148,-385.0,0.00017809,2]
[402686195,1768804246158,-150.0,0.00017811,2]
[402686196,1768804246167,-188.2,0.00017811,2]
[402686197,1768804246176,-2134.0,0.00017817,2]
[402686198,1768804246185,-256.16938,0.0001782,2]
[402686199,1768804246195,-343.52334,0.0001782,2]
[402686200,1768804246204,-343.52334,0.0001782,2]
[402686201,1768804246213,-256.16938,0.0001782,2]
[402686202,1768804246222,-343.52334,0.0001782,2]
[402686203,1768804246231,-343.52334,0.0001782,2]
[402686204,1768804246240,-256.16938,0.0001782,2]
[402686205,1768804246249,-256.16938,0.0001782,2]